bitfinex/quotes_SOLUSD_20251103
["timestamp","ask_amount","ask_price","bid_price","bid_amount"]
[1762165123166,4.24620336,175.58,175.56,2.80195554]
[1762165123348,17.95518082,175.59,175.55,0.69]
[1762165123548,4.24469005,175.58,175.56,2.80195554]
[1762165124167,12.26,175.59,175.56,2.80195554]
[1762165124856,0.7,175.58,175.56,2.80195554]
[1762165125478,17.95526695,175.59,175.56,2.80195554]
[1762165127278,6.39526695,175.59,175.56,2.80195554]
[1762165127459,11.54,175.58,175.56,2.80195554]
[1762165127668,6.39526695,175.59,175.56,2.80195554]
[1762165127865,11.54,175.58,175.56,2.80195554]
[1762165128066,11.54,175.58,175.55,3.49195554]
[1762165128863,11.54,175.58,175.55,9.18830335]
[1762165129062,5.6948508,175.6,175.57,2.80195554]
[1762165129378,15.78223609,175.59,175.57,2.80195554]
[1762165129571,11.54,175.59,175.57,2.80195554]
[1762165129872,12.24,175.59,175.56,2.80195554]
[1762165130076,12.24,175.58,175.55,0.14216157]
[1762165130455,12.24,175.58,175.54,24.08395554]
[1762165130654,12.24,175.58,175.55,0.69]
[1762165132074,17.93545114,175.58,175.54,24.08395554]
[1762165132386,0.7,175.57,175.54,2.80195554]
[1762165132588,0.7,175.57,175.52,0.14216157]
[1762165132892,17.23545114,175.58,175.54,2.80195554]
[1762165133094,11.54,175.58,175.54,2.80195554]
[1762165133386,6.39387146,175.63,175.58,0.14216157]
[1762165133565,15.78052327,175.62,175.6,2.80195554]
[1762165133769,4.24052327,175.61,175.6,2.80195554]
[1762165135259,4.24052327,175.61,175.59,2.80195554]
[1762165135679,11.54,175.6,175.59,2.80195554]
[1762165136883,6.39412255,175.62,175.59,2.80195554]
[1762165137084,15.78099459,175.61,175.59,2.80195554]
[1762165137383,11.54,175.61,175.59,2.80195554]
[1762165138093,12.24,175.61,175.59,2.80195554]
[1762165138391,11.54,175.61,175.58,2.80195554]
[1762165138704,12.24,175.61,175.58,3.46195554]
[1762165138990,11.54,175.61,175.58,3.46195554]
[1762165139199,11.54,175.61,175.58,0.66]
[1762165139200,12.20263834,175.61,175.58,0.66]
[1762165139486,11.50263834,175.61,175.58,3.46195554]
[1762165139691,11.50263834,175.61,175.59,2.80195554]
[1762165140371,61.49350736,175.64,175.6,3.46195554]
[1762165140569,4.24497034,175.63,175.61,2.80195554]
[1762165140886,4.24497034,175.62,175.61,2.80195554]
[1762165141590,4.24497034,175.62,175.6,2.80195554]
[1762165141769,4.24497034,175.61,175.6,2.80195554]
[1762165141967,4.24497034,175.61,175.59,2.80195554]
[1762165142172,11.54,175.6,175.59,0.66]
[1762165142372,15.78910538,175.6,175.59,0.66]
[1762165142892,5.47237618,175.68,175.6,0.14216157]
[1762165143094,4.24847313,175.67,175.6,21.30363765]
[1762165143274,0.7,175.7,175.66,2.80195554]
[1762165143476,0.7,175.7,175.62,0.14216157]
[1762165143477,15.78934692,175.69,175.62,0.14216157]
[1762165143789,4.24934692,175.68,175.67,0.71]
[1762165144171,4.24934692,175.68,175.66,6.40272074]
[1762165144368,11.54,175.69,175.66,6.40272074]
[1762165144685,4.24941915,175.68,175.67,2.80195554]
[1762165145267,4.24941915,175.68,175.67,3.51195554]
[1762165145463,4.24941915,175.68,175.67,2.80195554]
[1762165146291,4.24941915,175.68,175.65,0.71]
[1762165146292,4.90941915,175.68,175.65,0.14216157]
[1762165146484,4.24941915,175.67,175.65,2.80195554]
[1762165146788,15.79046161,175.66,175.65,2.80195554]
[1762165147194,11.54,175.66,175.65,3.51195554]
[1762165148486,11.54,175.66,175.65,9.2050953]
[1762165149196,11.54,175.66,175.65,2.80195554]
[1762165149575,15.79092424,175.66,175.65,2.80195554]
[1762165149776,11.54,175.66,175.65,2.80195554]
[1762165151074,16.44977087,175.66,175.63,5.69371804]
[1762165151291,5.69220815,175.68,175.64,2.80195554]
[1762165151501,16.44931975,175.67,175.64,2.80195554]
[1762165151685,4.24931975,175.66,175.63,8.49567358]
[1762165151881,0.66,175.66,175.63,8.49567358]
[1762165152080,11.54,175.65,175.63,9.20567358]
[1762165152275,11.54,175.65,175.63,8.49567358]
[1762165152986,11.54,175.65,175.64,2.80195554]
[1762165153909,11.54,175.65,175.64,9.34758101]
[1762165155007,11.54,175.65,175.64,2.94411711]
[1762165155205,0.66,175.67,175.64,2.94411711]
[1762165155502,11.54,175.66,175.64,8.63751279]
[1762165156387,11.54,175.66,175.64,7.62953059]
[1762165157119,11.54,175.66,175.62,5.69384264]
[1762165157291,4.90695886,175.65,175.63,1.79397334]
[1762165157490,4.24695886,175.65,175.63,1.79397334]
[1762165157692,12.2,175.66,175.63,1.79397334]
[1762165157890,12.2,175.66,175.63,2.50397334]
[1762165158321,12.2,175.66,175.63,8.19771471]
[1762165158492,6.35225055,175.68,175.63,6.40374137]
[1762165158823,4.2465436,175.67,175.66,1.79397334]
[1762165158989,4.2465436,175.68,175.66,1.79397334]
[1762165159192,11.54,175.67,175.66,0.14216157]
[1762165159496,11.54,175.67,175.66,0.85216157]
[1762165160321,11.54,175.67,175.66,6.54497723]
[1762165160516,11.54,175.67,175.66,8.33895057]
[1762165161422,11.54,175.67,175.66,7.486789]
[1762165161588,11.54,175.67,175.66,1.79397334]
[1762165162319,11.54,175.67,175.66,8.196789]
[1762165162813,11.54,175.67,175.66,8.33895057]
[1762165166122,0.66,175.7,175.66,8.33895057]
[1762165166323,11.54,175.67,175.66,6.54497723]
[1762165166622,11.54,175.67,175.66,5.83497723]
[1762165167196,11.54,175.67,175.66,6.50497723]
[1762165167511,11.54,175.67,175.66,8.29895057]
[1762165167695,11.54,175.67,175.66,7.486789]
[1762165168098,5.69124244,175.71,175.66,8.156789]
[1762165168304,16.47180138,175.7,175.66,8.156789]
[1762165168527,12.23,175.7,175.66,8.156789]
[1762165168695,0.69,175.69,175.66,8.156789]
[1762165169109,11.54,175.68,175.66,8.156789]
[1762165169605,11.54,175.67,175.66,8.156789]
[1762165169924,11.54,175.67,175.65,5.69311085]
[1762165170590,12.23,175.67,175.64,7.48734825]
[1762165170791,12.23,175.67,175.64,8.15734825]
[1762165171094,0.69,175.66,175.64,7.48741871]
[1762165171318,11.54,175.67,175.64,7.48741871]
[1762165171530,0.69,175.66,175.64,7.48741871]
[1762165172398,0.69,175.66,175.64,5.69344537]
[1762165173516,0.69,175.66,175.62,0.67]
[1762165173720,4.93539686,175.66,175.63,2.60613491]
[1762165173910,4.93539686,175.66,175.63,8.29976534]
[1762165174101,4.93539686,175.66,175.63,7.48760377]
[1762165175620,4.24539686,175.66,175.64,1.79397334]
[1762165175804,4.24539686,175.66,175.65,1.79397334]
[1762165175998,11.54,175.67,175.65,1.79397334]
[1762165176616,11.54,175.66,175.65,1.79397334]
[1762165177395,12.23,175.66,175.64,7.48727473]
[1762165177601,11.54,175.66,175.64,7.48727473]
[1762165177820,11.54,175.66,175.65,1.79397334]
[1762165178203,11.54,175.66,175.65,2.46397334]
[1762165179326,15.79409778,175.66,175.65,2.46397334]
[1762165180205,15.79409778,175.66,175.65,1.79397334]
[1762165182601,15.79409778,175.66,175.64,6.36330139]
[1762165182602,16.48409778,175.66,175.64,7.48727473]
[1762165182819,16.48409778,175.66,175.6,20.592]
[1762165182820,4.94409778,175.65,175.6,20.592]
[1762165183002,4.25409778,175.64,175.6,28.75042252]
[1762165183207,15.79409778,175.63,175.61,0.67]
[1762165183411,11.54,175.63,175.61,2.46397334]
[1762165184098,4.26020107,175.62,175.61,5.69441001]
[1762165185222,4.26020107,175.62,175.6,0.14216157]
[1762165185430,0.69,175.62,175.6,1.79397334]
[1762165185619,4.26193146,175.61,175.6,1.79397334]
[1762165186302,55.1,175.68,175.61,0.14216157]
[1762165186505,15.80252042,175.67,175.64,0.14216157]
[1762165186738,4.26252042,175.66,175.65,0.81216157]
[1762165187245,26.31,175.72,175.66,0.14216157]
[1762165187409,12.23,175.71,175.66,0.14216157]
[1762165187604,12.23,175.71,175.66,0.81216157]
[1762165187826,12.23,175.71,175.69,1.79397334]
[1762165191540,0.69,175.7,175.66,0.14216157]
[1762165191841,0.69,175.7,175.67,2.46397334]
[1762165192147,11.54,175.71,175.67,2.46397334]
[1762165192315,12.23,175.71,175.67,2.46397334]
[1762165192517,12.23,175.71,175.68,1.79397334]
[1762165193425,12.23,175.71,175.69,1.79397334]
[1762165194932,11.54,175.71,175.69,1.79397334]
[1762165195930,12.23,175.71,175.68,5.69209442]
[1762165196134,12.23,175.71,175.69,1.79397334]
[1762165198117,12.23,175.71,175.68,7.48606776]
[1762165198432,11.54,175.71,175.68,6.35209442]
[1762165198640,11.54,175.71,175.68,8.14606776]
[1762165200112,11.54,175.71,175.69,2.45397334]
[1762165200312,8.76461433,175.73,175.7,1.79397334]
[1762165200313,3.07396413,175.73,175.7,1.79397334]
[1762165200617,0.1,175.73,175.72,1.79397334]
[1762165200835,11.64,175.73,175.72,1.79397334]
[1762165201023,11.64,175.73,175.72,2.51397334]
[1762165204018,0.1,175.73,175.72,8.34700675]
[1762165204218,0.1,175.75,175.74,20.73416157]
[1762165204418,11.64,175.75,175.74,23.09715732]
[1762165204646,11.64,175.75,175.74,23.81715732]
[1762165206138,11.64,175.75,175.74,27.71340817]
[1762165206342,11.64,175.75,175.74,27.14438576]
[1762165206650,0.1,175.75,175.74,28.9383591]
[1762165207446,0.1,175.75,175.74,29.50738151]
[1762165208037,0.1,175.75,175.74,28.9383591]
[1762165208549,0.1,175.75,175.74,29.50738151]
[1762165208845,0.1,175.75,175.74,28.9383591]
[1762165210637,0.1,175.75,175.74,28.9009586]
[1762165212449,0.1,175.75,175.74,26.24482369]
[1762165213454,0.1,175.75,175.74,28.03879703]
[1762165214453,8.26388514,175.75,175.66,0.72]
[1762165214753,2.47397334,175.74,175.68,1.79397334]
[1762165214936,11.54,175.73,175.69,0.14216157]
[1762165215133,12.22,175.73,175.67,1.79397334]
[1762165215449,0.68,175.72,175.68,1.79397334]
[1762165215631,0.68,175.72,175.69,5.69184358]
[1762165216045,0.68,175.72,175.68,7.62823966]
[1762165216238,0.68,175.72,175.68,5.69210475]
[1762165216751,0.68,175.72,175.68,7.48607809]
[1762165217453,0.68,175.72,175.67,1.93613491]
[1762165217643,0.68,175.72,175.68,5.69216757]
[1762165218153,0.68,175.72,175.67,7.62853161]
[1762165218349,0.68,175.72,175.67,8.63676032]
[1762165218654,0.68,175.72,175.68,2.80220205]
[1762165219460,0.68,175.72,175.67,9.35676032]
[1762165221532,6.37097243,175.72,175.67,9.35676032]
[1762165221960,0.68,175.71,175.67,8.63676032]
[1762165222137,11.54,175.7,175.67,8.63676032]
[1762165222539,12.22,175.7,175.67,8.63676032]
[1762165222845,11.54,175.69,175.67,9.35676032]
[1762165223156,63.59245892,175.74,175.68,2.80220205]
[1762165223335,0.68,175.71,175.68,2.80220205]
[1762165224157,0.68,175.71,175.67,9.35676032]
[1762165224356,0.68,175.71,175.67,8.63676032]
[1762165224952,11.54,175.7,175.67,9.35676032]
[1762165225156,11.54,175.7,175.68,2.80220205]
[1762165225458,11.54,175.7,175.68,3.52220205]
[1762165225960,11.54,175.7,175.68,2.80220205]
[1762165226334,11.54,175.7,175.68,8.4940601]
[1762165230357,11.54,175.7,175.68,9.1540601]
[1762165230559,11.54,175.7,175.68,8.4940601]
[1762165231335,11.54,175.69,175.68,9.1540601]
[1762165231564,0.71,175.71,175.68,9.1540601]
[1762165231755,11.54,175.69,175.68,9.1540601]
[1762165232168,11.54,175.69,175.68,5.69185805]
[1762165233153,0.71,175.71,175.68,5.69185805]
[1762165233461,11.54,175.69,175.68,5.69185805]
[1762165234087,11.54,175.69,175.68,8.63622167]
[1762165234267,11.54,175.69,175.68,9.29622167]
[1762165236957,63.59247664,175.74,175.68,9.29622167]
[1762165237164,12.25,175.73,175.68,9.29622167]
[1762165237753,0.71,175.72,175.68,9.29622167]
[1762165239265,55.1,175.74,175.71,2.80220205]
[1762165239565,11.54,175.73,175.72,0.66]
[1762165240362,11.54,175.73,175.72,0.14216157]
[1762165240570,12.25,175.73,175.71,2.94436362]
[1762165240948,11.54,175.73,175.71,2.94436362]
[1762165241154,11.54,175.73,175.72,5.69087184]
[1762165241759,12.25,175.73,175.7,2.80220205]
[1762165241970,12.25,175.73,175.7,8.49369777]
[1762165242584,0.71,175.72,175.7,8.49369777]
[1762165243262,0.71,175.72,175.69,8.49404563]
[1762165243569,0.71,175.72,175.69,9.15404563]
[1762165244559,0.71,175.72,175.69,5.69184358]
[1762165244758,3.51220205,175.72,175.68,5.69188193]
[1762165244959,0.71,175.71,175.68,5.69188193]
[1762165249846,0.71,175.71,175.68,8.49408398]
[1762165251675,0.71,175.71,175.68,9.15408398]
[1762165252176,11.52,175.7,175.68,9.15408398]
[1762165253175,11.52,175.69,175.68,9.15408398]
[1762165253853,11.52,175.69,175.67,8.63678784]
[1762165254114,12.23,175.69,175.67,8.63678784]
[1762165254372,11.52,175.69,175.67,9.29678784]
[1762165254749,11.52,175.68,175.67,9.29678784]
[1762165256570,11.52,175.68,175.67,23.52801684]
[1762165257273,0.7,175.71,175.67,23.52801684]
[1762165257457,11.52,175.7,175.67,23.52801684]
[1762165257860,0.7,175.71,175.67,23.52801684]
[1762165258066,11.52,175.7,175.67,23.52801684]
[1762165259196,0.7,175.71,175.67,23.52801684]
[1762165259492,11.52,175.7,175.68,0.69]
[1762165259697,0.7,175.71,175.68,0.69]
[1762165259873,11.52,175.7,175.68,6.38201626]
[1762165260079,11.52,175.7,175.67,5.69242033]
[1762165260396,2.80220205,175.68,175.62,3.49220205]
[1762165260693,0.7,175.69,175.63,3.49220205]
[1762165260861,0.7,175.68,175.63,0.69]
[1762165261065,0.7,175.7,175.64,3.49220205]
[1762165261294,0.7,175.71,175.67,2.80220205]
[1762165261490,3.50220205,175.69,175.64,0.14216157]
[1762165261681,3.50220205,175.69,175.63,0.14216157]
[1762165261982,3.50220205,175.68,175.63,5.69378807]
[1762165262162,6.39218528,175.68,175.63,5.69378807]
[1762165262367,0.7,175.67,175.63,5.69378807]
[1762165262565,11.52,175.66,175.63,5.69378807]
[1762165262866,0.7,175.65,175.63,5.69378807]
[1762165263583,9.96826608,175.66,175.62,8.6384759]
[1762165263793,9.96826608,175.66,175.62,9.3284759]
[1762165264887,9.96826608,175.66,175.62,8.6384759]
[1762165265072,9.96826608,175.66,175.63,0.69]
[1762165265592,2.80220205,175.64,175.56,3.49220205]
[1762165265775,2.80220205,175.61,175.56,0.69]
[1762165265974,11.52,175.6,175.58,2.80220205]
[1762165266271,11.52,175.59,175.57,0.69]
[1762165266464,0.55,175.64,175.58,2.80220205]
[1762165266663,11.52,175.63,175.59,8.49728719]
[1762165266891,3.83325813,175.62,175.59,5.69508514]
[1762165267076,4.38325813,175.62,175.59,5.69508514]
[1762165267275,3.83325813,175.62,175.57,9.18767927]
[1762165267483,3.35220205,175.61,175.55,8.49858484]
[1762165267678,4.38325813,175.61,175.57,0.69]
[1762165267862,3.83325813,175.61,175.57,3.49220205]
[1762165268068,3.83325813,175.62,175.57,3.49220205]
[1762165268267,3.83325813,175.61,175.57,3.49220205]
[1762165268568,4.38325813,175.62,175.57,3.49220205]
[1762165268768,4.38325813,175.62,175.57,9.18762205]
[1762165269107,3.83325813,175.61,175.57,9.18762205]
[1762165269466,4.38325813,175.62,175.58,0.69]
[1762165269671,3.83325813,175.64,175.61,2.80220205]
[1762165269871,3.83325813,175.66,175.63,2.80220205]
[1762165270082,9.52548635,175.68,175.65,2.80220205]
[1762165270307,15.37325813,175.67,175.64,2.80220205]
[1762165270512,3.83325813,175.66,175.61,0.14216157]
[1762165270668,3.83325813,175.66,175.65,2.80220205]
[1762165270870,3.83325813,175.66,175.65,8.49534181]
[1762165271087,11.54,175.66,175.65,5.69313976]
[1762165271412,11.54,175.66,175.64,5.69336062]
[1762165271586,11.54,175.66,175.65,2.80220205]
[1762165271788,11.54,175.66,175.63,0.14216157]
[1762165272091,11.54,175.66,175.63,2.80220205]
[1762165272410,3.82480981,175.65,175.61,2.80220205]
[1762165272587,11.54,175.66,175.63,2.80220205]
[1762165273577,12.09,175.66,175.63,2.80220205]
[1762165273777,12.09,175.66,175.62,9.18604968]
[1762165274003,11.54,175.66,175.63,2.80220205]
[1762165274383,12.09,175.66,175.63,2.80220205]
[1762165274706,8.32418643,175.7,175.65,2.80220205]
[1762165274874,15.36366842,175.69,175.66,2.80220205]
[1762165275077,3.82366842,175.68,175.66,2.80220205]
[1762165275283,3.82366842,175.67,175.66,5.83497723]
[1762165275596,11.54,175.67,175.64,5.69342873]
[1762165275801,11.54,175.67,175.64,9.18563078]
[1762165275974,11.54,175.67,175.65,0.69]
[1762165276683,11.54,175.67,175.64,8.49563078]
[1762165276885,11.54,175.67,175.64,5.69342873]
[1762165276886,12.09,175.67,175.64,5.69342873]
[1762165277095,12.09,175.67,175.63,5.69378807]
[1762165277412,11.54,175.67,175.63,6.38378807]
[1762165277698,11.54,175.67,175.63,8.49599012]
[1762165277999,11.54,175.67,175.63,5.69378807]
[1762165278000,12.09,175.67,175.63,5.69378807]
[1762165278174,11.54,175.67,175.63,6.38378807]
[1762165278781,11.54,175.67,175.62,2.80220205]
[1762165278782,4.37353673,175.66,175.62,2.80220205]
[1762165278982,12.86856376,175.66,175.56,28.47933526]
[1762165279194,12.86856376,175.66,175.59,3.49220205]
[1762165279195,7.17573878,175.65,175.59,3.49220205]
[1762165279392,7.17573878,175.65,175.59,24.08420205]
[1762165279903,4.37353673,175.65,175.6,3.49220205]
[1762165280308,4.37353673,175.65,175.59,20.592]
[1762165280309,11.31169258,175.65,175.59,5.6949031]
[1762165280510,4.37353673,175.64,175.57,7.49038639]
[1762165280804,1.79497526,175.62,175.57,5.69541113]
[1762165281108,6.16851199,175.62,175.57,6.38541113]
[1762165281274,6.16851199,175.62,175.57,8.18038639]
[1762165281275,4.37353673,175.62,175.57,8.18038639]
[1762165282302,0.55,175.62,175.57,8.18038639]
[1762165282886,19.02906733,175.63,175.58,2.48497526]
[1762165283084,17.23409207,175.63,175.58,2.48497526]
[1762165283297,17.78409207,175.63,175.58,2.48497526]
[1762165283800,6.24415505,175.62,175.57,7.49038639]
[1762165284316,19.02879522,175.63,175.58,2.48497526]
[1762165284604,19.57879522,175.63,175.58,2.48497526]
[1762165284778,19.02879522,175.63,175.58,2.48497526]
[1762165285075,0.55,175.62,175.58,2.48497526]
[1762165285705,19.02879522,175.63,175.58,8.18020158]
[1762165286011,11.54,175.62,175.6,0.14216157]
[1762165286203,11.54,175.61,175.6,1.93713683]
[1762165286404,11.54,175.61,175.6,0.14216157]
[1762165286590,11.54,175.61,175.6,0.85216157]
[1762165286908,11.54,175.61,175.59,1.79497526]
[1762165287198,11.54,175.61,175.59,2.50497526]
[1762165288007,11.54,175.61,175.59,7.48980986]
[1762165288182,11.54,175.61,175.6,0.71]
[1762165288899,11.54,175.61,175.6,2.50497526]
[1762165289777,11.54,175.61,175.6,8.19943022]
[1762165291083,11.54,175.61,175.6,6.40445496]
[1762165291886,11.54,175.61,175.6,8.19943022]
[1762165292087,55.1,175.66,175.61,0.14216157]
[1762165292397,3.82147491,175.65,175.63,1.79497526]
[1762165292593,3.82147491,175.67,175.64,1.79497526]
[1762165292791,3.82147491,175.68,175.66,1.79497526]
[1762165292991,15.36147491,175.67,175.64,2.50497526]
[1762165293195,3.82147491,175.66,175.64,2.50497526]
[1762165294288,3.82147491,175.66,175.65,2.50497526]
[1762165294487,25.64,175.71,175.66,0.14216157]
[1762165294807,25.64,175.71,175.7,1.79497526]
[1762165294996,41.002143,175.71,175.7,1.79497526]
[1762165295192,37.18,175.71,175.7,1.79497526]
[1762165295594,25.64,175.71,175.7,2.50497526]
[1762165295810,37.18,175.71,175.7,2.50497526]
[1762165296687,25.64,175.71,175.7,2.50497526]
[1762165296888,37.18,175.71,175.7,2.50497526]
[1762165297091,37.18,175.71,175.7,8.19649489]
[1762165298192,25.64,175.71,175.7,8.19649489]
[1762165298400,37.18,175.71,175.7,8.19649489]
[1762165298988,25.64,175.71,175.7,8.19649489]
[1762165299194,25.64,175.71,175.7,8.33865646]
[1762165299504,37.18,175.71,175.7,8.33865646]
[1762165301917,0.1,175.75,175.71,0.14216157]
[1762165302108,11.54,175.74,175.73,1.93713683]
[1762165302498,11.54,175.74,175.73,8.33768482]
[1762165303201,11.54,175.74,175.71,7.48617098]
[1762165303395,11.54,175.74,175.71,8.19617098]
[1762165304098,11.54,175.74,175.72,0.71]
[1762165304400,11.54,175.74,175.72,5.69066571]
[1762165305707,11.54,175.74,175.71,8.19615818]
[1762165307523,0.1,175.75,175.71,8.19615818]
[1762165307728,0.1,175.75,175.71,6.40118292]
[1762165307729,11.52,175.73,175.71,6.40118292]
[1762165308021,11.52,175.73,175.71,7.48615818]
[1762165308205,11.52,175.72,175.71,7.62831975]
[1762165309098,11.52,175.72,175.71,8.33831975]
[1762165310714,0.1,175.75,175.71,8.33831975]
[1762165310920,11.52,175.72,175.71,5.83334449]
[1762165311512,11.52,175.72,175.71,6.54334449]
[1762165311715,11.52,175.72,175.68,0.71]
[1762165312022,11.52,175.72,175.7,1.79497526]
[1762165312419,11.52,175.72,175.7,7.4863456]
[1762165313032,11.52,175.72,175.7,8.1963456]
[1762165313211,11.52,175.72,175.71,1.79497526]
[1762165313529,11.52,175.72,175.71,7.48617098]
[1762165315432,0.1,175.75,175.71,8.33833255]
[1762165315741,0.1,175.75,175.74,1.79497526]
[1762165315918,0.1,175.75,175.74,22.52913683]
[1762165316124,0.1,175.75,175.74,23.23913683]
[1762165316322,0.2,175.79,175.75,25.03411209]
[1762165316631,0.2,175.79,175.78,1.93713683]
[1762165317010,0.2,175.79,175.78,2.61713683]
[1762165317338,0.2,175.79,175.78,8.30606617]
[1762165320816,0.2,175.79,175.77,5.68916011]
[1762165321025,0.2,175.79,175.78,1.79497526]
[1762165321218,0.2,175.79,175.78,2.47497526]
[1762165321420,0.2,175.79,175.78,8.30606617]
[1762165322139,0.2,175.8,175.79,0.14216157]
[1762165322318,0.2,175.8,175.79,2.61713683]
[1762165323434,0.2,175.8,175.79,8.30574255]
[1762165324039,0.1,175.81,175.79,8.30574255]
[1762165324245,11.56,175.89,175.82,20.592]
[1762165324540,0.1,175.9,175.88,1.93713683]
[1762165324749,11.56,175.89,175.88,0.14216157]
[1762165325444,11.56,175.89,175.88,0.82216157]
[1762165325627,11.56,175.89,175.88,6.50785636]
[1762165325831,11.56,175.89,175.88,8.30283162]
[1762165328111,0.1,175.9,175.88,8.30283162]
[1762165328339,0.1,175.9,175.89,2.47497526]
[1762165328814,0.1,175.9,175.89,2.61713683]
[1762165329019,0.1,175.9,175.89,28.89450836]
[1762165331839,0.1,175.9,175.89,27.0995331]
[1762165332143,0.1,175.9,175.89,28.89450836]
[1762165335031,0.1,175.9,175.89,27.0995331]
[1762165335230,0.1,175.9,175.89,28.21450836]
[1762165335747,0.1,175.9,175.89,28.89450836]
[1762165336060,0.1,175.9,175.89,28.21450836]
[1762165336352,0.1,175.9,175.89,28.07234679]
[1762165336851,0.1,175.9,175.89,28.75234679]
[1762165337350,0.1,175.9,175.89,28.07234679]
[1762165337539,0.1,175.9,175.89,28.21450836]
[1762165338139,11.64,175.9,175.89,28.21450836]
[1762165338855,11.64,175.9,175.89,28.89450836]
[1762165339051,0.1,175.9,175.89,28.89450836]
[1762165340063,0.1,175.9,175.89,28.21450836]
[1762165340353,11.64,175.9,175.89,29.21393222]
[1762165340568,11.64,175.9,175.89,26.4195331]
[1762165340861,11.64,175.9,175.89,29.89393222]
[1762165342135,11.64,175.9,175.89,29.21393222]
[1762165342737,11.64,175.9,175.89,29.89393222]
[1762165345663,0.1,175.9,175.89,29.89393222]
[1762165346759,0.1,175.9,175.89,29.21393222]
[1762165347333,0.1,175.9,175.89,29.88393222]
[1762165349664,0.1,175.9,175.89,29.07177065]
[1762165350563,0.1,175.9,175.89,29.21393222]
[1762165350943,0.82,175.9,175.88,5.68559603]
[1762165351262,0.82,175.9,175.87,5.68590499]
[1762165352759,0.82,175.9,175.87,8.48030411]
[1762165353451,0.1,175.9,175.89,2.79439912]
[1762165353763,11.62,175.9,175.89,2.79439912]
[1762165354537,0.1,175.9,175.89,2.79439912]
[1762165354741,11.62,175.9,175.89,8.47977065]
[1762165354942,12.34,175.9,175.89,2.79439912]
[1762165355345,0.82,175.9,175.89,2.79439912]
[1762165355550,11.62,175.9,175.89,8.47977065]
[1762165356449,11.58307636,175.9,175.89,2.79439912]
[1762165356651,11.58307636,175.9,175.89,8.47977065]
[1762165357357,12.30307636,175.9,175.88,5.68558413]
[1762165357547,12.30307636,175.9,175.89,2.79439912]
[1762165358862,12.30307636,175.9,175.87,5.82795304]
[1762165359077,11.58307636,175.9,175.87,5.68579147]
[1762165359253,11.58307636,175.9,175.89,2.79439912]
[1762165359450,12.30307636,175.9,175.89,2.79439912]
[1762165361063,12.30307636,175.9,175.87,5.68591779]
[1762165361242,12.30307636,175.9,175.89,2.79439912]
[1762165361446,16.12120042,175.9,175.89,2.79439912]
[1762165363886,16.12120042,175.9,175.86,2.79439912]
[1762165364193,4.53812406,175.89,175.86,2.79439912]
[1762165364357,3.81812406,175.88,175.87,2.79439912]
[1762165364790,4.53812406,175.88,175.87,2.79439912]
[1762165364951,0.72,175.88,175.87,2.79439912]
[1762165366161,0.72,175.88,175.86,2.79439912]
[1762165366707,0.72,175.88,175.85,2.79439912]
[1762165366972,0.72,175.88,175.86,2.79439912]
[1762165367146,0.06307636,175.9,175.87,2.79439912]
[1762165367350,0.06307636,175.9,175.89,2.79439912]
[1762165367550,11.58307636,175.9,175.89,2.79439912]
[1762165367749,12.30307636,175.9,175.89,2.79439912]
[1762165367967,11.58307636,175.9,175.89,2.79439912]
[1762165370082,12.30307636,175.9,175.89,2.79439912]
[1762165370384,11.58307636,175.9,175.89,2.79439912]
[1762165371190,12.30307636,175.9,175.89,2.79439912]
[1762165371364,12.30307636,175.9,175.85,2.79439912]
[1762165371565,0.72,175.89,175.85,2.79439912]
[1762165371886,2.79439912,175.88,175.82,2.79439912]
[1762165372193,17.20609681,175.87,175.81,2.79439912]
[1762165372405,0.72,175.89,175.86,2.79439912]
[1762165372588,0.72,175.89,175.84,0.14216157]
[1762165372589,11.52,175.88,175.84,0.14216157]
[1762165372968,11.52,175.88,175.84,0.81216157]
[1762165373588,0.72,175.89,175.84,0.81216157]
[1762165373901,11.54,175.87,175.84,0.81216157]